Cogmind - Beta 15 @@@ ROGUE MODE // 2025.05.12 @ 21:06:29 Player: celerysam Result: Self-destructed Performance ------------- Evolutions (1) 500 Regions Visited (2) 400 Robots Destroyed (19) 95 Value Destroyed (499) 499 Prototype IDs (0) 0 Alien Tech Used (0) 0 Bonus (0) 0 TOTAL SCORE: 1494 Bonus ------- None Cogmind --------- Core Integrity 61/400 Matter 177/300 Energy 100/100 System Corruption 0% Temperature Cool (0) Movement Core (1350) Ox26 Location -9/Materials Parts ------- > --- POWER (1) -------- (None) > --- PROPULSION (3) --- (None) > --- UTILITY (3) ------ Huge Storage Unit > --- WEAPON (2) ------- (None) > --- INVENTORY (25) --- Light Treads Aluminum Leg Wheel Compact Wheel Structural Scanner Plasma Cutter Peak State ------------ > --- POWER ------------ Ion Engine > --- PROPULSION ------- Light Treads Light Treads Light Treads > --- UTILITY ---------- Heat Sink Huge Storage Unit > --- WEAPON ----------- Small Laser EMP Blaster > --- INVENTORY -------- Light Treads Aluminum Leg Wheel Compact Wheel Structural Scanner Small Laser Plasma Cutter [Rating: 9] Favorites ----------- Power Light Ion Engine Engine Light Ion Engine Propulsion Aluminum Leg Treads Light Treads Leg Aluminum Leg Wheel Compact Wheel Utility Heat Sink Device Heat Sink Storage Huge Storage Unit Weapon Small Laser Energy Gun Small Laser Ballistic Gun Assault Rifle Ballistic Cannon Light Cannon Launcher EMP Blaster Build | -11 -10 -9 ------- Run | Yrd Mat Mat Slots Evolved 2 | . . 2 Power . | . . . Propulsion 1 | . . 1 Utility 1 | . . 1 Weapon . | . . . Parts Attached 23 | 6 11 6 Power 3 | 1 2 . Engine 3 | 1 2 . Core . | . . . Reactor . | . . . Propulsion 8 | 2 3 3 Treads 3 | . . 3 Leg 2 | 2 . . Wheel 3 | . 3 . Hover . | . . . Flight . | . . . Utility 3 | 1 2 . Device 1 | . 1 . Storage 2 | 1 1 . Processor . | . . . Hackware . | . . . Protection . | . . . Artifact . | . . . Weapon 9 | 2 4 3 Energy Gun 4 | 1 3 . Energy Cannon . | . . . Ballistic Gun 3 | 1 . 2 Ballistic Cannon 1 | . 1 . Launcher 1 | . . 1 Special Weapon . | . . . Impact Weapon . | . . . Slashing Weapon . | . . . Piercing Weapon . | . . . Special Melee Weapon . | . . . Unidentified Prototypes . | . . . Parts Lost 16 | . 6 10 Power 2 | . 1 1 Propulsion 5 | . 2 3 Utility 1 | . . 1 Weapon 8 | . 3 5 Highest Loss Streak 9 | . 3 9 To Critical Strikes . | . . . Average Backups 6 | 4 7 6 Power . | . . . Propulsion 5 | 2 6 4 Utility . | . . 1 Weapon . | 1 . . Tool/Special . | . . . Unused Backups 3 | . . 3 Power . | . . . Propulsion 1 | . . 1 Utility 1 | . . 1 Weapon . | . . . Tool/Special 1 | . . 1 Average Slot Usage (%) 87 | . 93 75 Engine 10 | . 12 6 Treads 9 | . . 28 Leg 13 | . 19 . Wheel 4 | . 6 . Device 11 | . 13 9 Storage 12 | . 14 11 Energy Gun 16 | . 17 15 Ballistic Gun 3 | . 4 1 Ballistic Cannon 3 | . 4 . Peak Build Rating 9 | 6 7 9 Average Rating 6 | 4 6 7 On Entrance 4 | . 6 6 Naked Turns . | . . . Heaviest Build 91 | 12 88 91 Greatest Support 60 | 20 26 60 Greatest Overweight (x) 26 | . 8 26 Average Overweight (x) 1 | . 1 1 Largest Inventory Capacity 25 | 8 25 25 Average Capacity 16 | 6 13 25 Most Carried 9 | 6 9 8 Average Carried 7 | 4 7 6 Final Capacity 25 | 8 25 25 Final Carried 7 | 6 7 6 Class Distribution -------------------- 100% | Mutant Dominant Class ---------------- Mutant | -10/Materials Mutant | -9/Materials Resources | -11 -10 -9 ----------- Run | Yrd Mat Mat Matter Collected 392 | 243 149 . Remotely . | . . . Salvage Created 616 | . 398 218 Parts 38 | . 17 21 Haulers Intercepted 1 | . 1 . Recyclers Shooed . | . . . Parts Field Recycled . | . . . Retrieved Matter . | . . . Parts Self-Destructed . | . . . Prevented . | . . . Kills | -11 -10 -9 ------- Run | Yrd Mat Mat Combat Hostiles Destroyed 17 | . 9 8 Guns 13 | . 8 5 Cannons 1 | . 1 . AOE 3 | . . 3 Classes Destroyed 5 | . 4 1 Hauler 1 | . 1 . Operator 1 | . 1 . Swarmer 6 | . 2 4 Grunt 10 | . 7 3 Sentry 1 | . . 1 Best Kill Streak 3 | . 3 3 Combat Bots Only 3 | . 3 3 Max Kills in Single Turn 2 | . 2 2 Gunslinging 1 | . 1 . Exploded 2 | . . 2 Melee . | . . . Uniques/NPCs Destroyed . | . . . Combat | -11 -10 -9 -------- Run | Yrd Mat Mat Hostile Shots Fired 216 | . 74 142 Missed 51 | . 16 35 Hits 165 | . 58 107 Projectile 165 | . 58 107 Critical Strikes 1 | . . 1 Damage Taken 1957 | . 715 1242 Core 549 | . 210 339 Absorbed by Shields . | . . . Core Remaining (%) 58 | 100 16 . Volleys Fired 61 | . 38 23 Largest 2 | . 2 2 Hottest 80 | . 80 73 Shots Fired 96 | . 64 32 Gun 81 | . 54 27 Cannon 10 | . 10 . Launcher 5 | . . 5 Special . | . . . Kinetic 33 | . 16 17 Thermal 34 | . 24 10 Explosive . | . . . Electromagnetic 29 | . 24 5 Robot Hit Streak 13 | . 13 6 Robot Miss Streak 4 | . 4 1 Penetration Max . | . . . Secondary Targets 1 | . 1 . Max Gunslinging Chain 1 | . 1 . Shots Hit Robots 59 | . 40 19 Core Hits 30 | . 19 11 Critical Kills . | . . . Critical Parts Destroyed . | . . . Critical Strikes . | . . . Melee Attacks . | . . . Impact . | . . . Slashing . | . . . Piercing . | . . . Sneak Attacks . | . . . Combat Hostiles . | . . . Follow-up Attacks . | . . . Damage Inflicted 950 | . 610 340 Guns 601 | . 430 171 Cannons 125 | . 125 . Explosions 224 | . 55 169 Melee . | . . . Ramming . | . . . Kinetic 276 | . 175 101 Thermal 363 | . 261 102 Explosive . | . . . Electromagnetic 311 | . 174 137 Impact . | . . . Slashing . | . . . Piercing . | . . . Highest Corruption . | . . . Average Corruption . | . . . Corruption Purged . | . . . Corruption Blocked . | . . . Overload Shots . | . . . Overflow Damage 12 | . . 12 Projectiles . | . . . Explosions 12 | . . 12 Melee . | . . . Knockbacks . | . . . Impact . | . . . Kinetic . | . . . Secondary . | . . . Self-Inflicted Damage 16 | . . 16 Shots 1 | . . 1 Rammed . | . . . Targets Rammed . | . . . Kicked . | . . . Crushed . | . . . Highest Temperature 16 | . 12 16 Average Temperature 5 | . 4 6 Received Heat Transfer 939 | . 384 555 Siege Activations . | . . . Martial Activations . | . . . Shielding Activations . | . . . Robots Disrupted . | . . . Combat Hostiles . | . . . Robots Corrupted . | . . . Combat Hostiles . | . . . Parts Fried . | . . . Impact Corruptions . | . . . Robots Melted . | . . . Combat Hostiles . | . . . Parts Melted . | . . . Heat Transferred 775 | . 575 200 Parts Sabotaged . | . . . Parts Stolen . | . . . Parts Stripped . | . . . Power Chain Reactions 2 | . 1 1 Alert | -11 -10 -9 ------- Run | Yrd Mat Mat Maximum Alert Level . | . . . Low Security (%) 100 | 100 100 100 Level 1 . | . . . Level 2 . | . . . Level 3 . | . . . Level 4 . | . . . Level 5 . | . . . High Security . | . . . Max Security . | . . . Peak Influence 93 | . 93 93 Initial 25 | . . 25 Average 25 | . 26 27 Influence Increases 541 | . 303 238 Destroy 0b10 Robot/C 340 | . 180 160 Destroy 0b10 Robot/NC 10 | . 10 . Destroy Leader 62 | . 32 30 Successful Hack 4 | . 4 . Disable Machine 15 | . . 15 Destroy Structure 5 | . 2 3 Lose Combat Pursuer 105 | . 75 30 Influence Decreases 493 | . 242 251 Entered New Map 36 | . . 36 Time Decay 307 | . 192 115 Lost Part 150 | . 50 100 Squads Dispatched 4 | . 2 2 Investigation 1 | . . 1 Extermination . | . . . Reinforcement 3 | . 2 1 Assault . | . . . Garrison . | . . . Intercept . | . . . Searches Triggered . | . . . Construction Impeded . | . . . Haulers Reinforced . | . . . Active Scanning Responses . | . . . Cargo Convoy Interrupts . | . . . Stealth | -11 -10 -9 --------- Run | Yrd Mat Mat Distress Signals 3 | . 2 1 Communications Jammed . | . . . Distress Signals . | . . . Times Spotted 37 | . 25 12 Peak Tracking Total 6 | . 6 6 Tactical Retreats 5 | . 3 2 Traps | -11 -10 -9 ------- Run | Yrd Mat Mat Traps Triggered 4 | . 3 1 Indirectly 1 | . . 1 Trap Hack Attempts . | . . . Triggered . | . . . Disarmed . | . . . Reprogrammed . | . . . Reused . | . . . Traps Extracted . | . . . Installed . | . . . Triggered . | . . . Machines | -11 -10 -9 ---------- Run | Yrd Mat Mat Machines Disabled 1 | . . 1 Max in Single Turn 1 | . . 1 Machines Repaired . | . . . Machines Dismantled . | . . . Machines Sabotaged . | . . . Overloaded Fab Kills . | . . . Hacking | -11 -10 -9 --------- Run | Yrd Mat Mat Machines Accessed 1 | . 1 . Terminals 1 | . 1 . Fabricators . | . . . Repair Stations . | . . . Recycling Units . | . . . Scanalyzers . | . . . Garrison Access . | . . . Total Hacks 2 | . 2 . Successful 1 | . 1 . Failed 1 | . 1 . Catastrophic . | . . . Database Lockouts . | . . . Manual . | . . . Terminals 2 | . 2 . Fabricators . | . . . Repair Stations . | . . . Recycling Units . | . . . Scanalyzers . | . . . Garrison Access . | . . . Terminal Hacks 1 | . 1 . Emergency Access Points 1 | . 1 . Fabricator Hacks . | . . . Repair Station Hacks . | . . . Recycling Unit Hacks . | . . . Scanalyzer . | . . . Garrison Access Hacks . | . . . Unauthorized Hacks . | . . . Terminals . | . . . Fabricators . | . . . Repair Stations . | . . . Recycling Units . | . . . Scanalyzers . | . . . Garrison Access . | . . . Data Cores Recovered . | . . . Used . | . . . Hacking Detections 1 | . 1 . Full Trace Events . | . . . Feedback Events . | . . . Feedback Blocked . | . . . Robot Schematics Acquired . | . . . Robots Built . | . . . Authchips . | . . . Time . | . . . Total Robot Build Rating . | . . . Part Schematics Acquired . | . . . Parts Built . | . . . Authchips . | . . . Time . | . . . Total Part Build Rating . | . . . Parts Repaired . | . . . Time . | . . . Parts Recycled . | . . . Recycled Matter . | . . . Retrieved Matter . | . . . Retrieved Components . | . . . Parts Scanalyzed . | . . . Part Schematics Acquired . | . . . Parts Damaged . | . . . Bothacking | -11 -10 -9 ------------ Run | Yrd Mat Mat Used RIF Installer . | . . . Robots Hacked . | . . . Non-combat . | . . . Combat . | . . . Robot Hacks Applied . | . . . Relay Couplers Released . | . . . Fabnet Peak Effective % . | . . . Robots Rewired . | . . . Allies Hacked . | . . . Hacks Repelled . | . . . Allies | -11 -10 -9 -------- Run | Yrd Mat Mat Total Allies . | . . . Largest Group . | . . . Highest-Rated Group . | . . . Highest-Rated Ally . | . . . Total Orders . | . . . Ally Attacks . | . . . Total Damage . | . . . Kills . | . . . Allies Corrupted . | . . . Allies Melted . | . . . Intel | -11 -10 -9 ------- Run | Yrd Mat Mat Active Infowar (turns) . | . . . Robot Analysis Total . | . . . Derelict Logs Recovered . | . . . Drone Launches . | . . . Drone Recoveries . | . . . Exploration | -11 -10 -9 ------------- Run | Yrd Mat Mat Turns Passed 1238 | 75 770 393 Spaces Moved 667 | 63 478 126 Core 26 | 24 . 2 Treads 124 | . . 124 Legs 396 | 39 357 . Wheels 121 | . 121 . Hover . | . . . Flight . | . . . Fastest Speed 50 | 50 120 240 Average Speed 152 | 93 131 260 Slowest Speed 1350 | 120 200 1350 Overloaded Moves . | . . . Propulsion Burnouts . | . . . Robots Hopped . | . . . Potential Cave-ins . | . . . Cave-ins Triggered . | . . . Exploration Rate (%) 36 | 4 85 21 Regions Visited 2 Branch Regions . Pre-discovered Areas . | . . . Known Exits Taken . | . . . Unknown Exits Taken 2 | 1 1 . Scrap Searched . | . . . Spaces Dug . | . . . Terrain Destroyed 5 | . 2 3 Melee . | . . . Projectile . | . . . AOE 5 | . 2 3 Terrain Rammed . | . . . Walls Destroyed . | . . . Machines Disabled . | . . . Actions | -11 -10 -9 --------- Run | Yrd Mat Mat Total 788 | 77 551 160 Wait 10 | . 10 . Move 665 | 62 477 126 Hop . | . . . Pick Up 19 | 9 6 4 Fast Attach 10 | 3 7 . Attach 13 | 3 5 5 Detach . | . . . Swap 7 | . 5 2 Drop 3 | . 3 . Fire 61 | . 38 23 Melee . | . . . Ram . | . . . Kick . | . . . Crush . | . . . Escape Stasis . | . . . Rewire . | . . . Trap . | . . . Miscellaneous . | . . . Route ------- -11/Scrapyard -10/Materials (discovered 4 exits: [*Mat x2] / [*Min] / [*Sub]) -9/Materials History --------- Turn | Location | Event 7 | -11/Scrapyard | Discovered new exit (range 15) 76 | -11/Scrapyard | Entered Materials 256 | -10/Materials | Discovered new exit (range 7) 326 | -10/Materials | Discovered new exit (range 9) 336 | -10/Materials | Build established: Mutant 411 | -10/Materials | Discovered new exit (range 6) 609 | -10/Materials | Lost 3 parts (1p2w) 642 | -10/Materials | Core integrity fell below 50% 802 | -10/Materials | Core integrity fell below 20% 830 | -10/Materials | Discovered new exit (range 8) 846 | -10/Materials | Entered another Materials area 846 | -9/Materials | Evolved 2 slots: Propulsion x1, Utility x1 1201 | -9/Materials | Core integrity fell below 50% 1234 | -9/Materials | Core integrity fell below 20% 1239 | -9/Materials | Self-destructed Last Messages --------------- 01192_ Lgt. Assault Rifle destroyed. 01193_ G-34 Mercenary destroyed. 01194_ Sml. Laser destroyed. 01198_ G-34 Mercenary destroyed. 01199_ R-06 Scavenger inserts Beam Rifle into recycling unit. 01202_ R-06 Scavenger inserts Lgt. Treads into recycling unit. 01205_ R-06 Scavenger inserts Heat Sink into recycling unit. 01206_ Lgt. Treads destroyed. 01208_ R-06 Scavenger inserts Hvy. Assault Rifle into recycling unit. 01210_ G-34 Mercenary destroyed. 01215_ R-06 Scavenger collects Heat Sink. 01219_ Lgt. Assault Rifle destroyed. 01219_ R-06 Scavenger collects Sml. Laser. 01223_ R-06 Scavenger collects Ion Engine. 01225_ R-06 Scavenger destroyed. 01233_ K-01 Serf collects debris. Map ----- +----------------------------------------------------+ | ???????????????????#??""" #???# #??????????? | | ???????????????????# """"" #???# #??????????? | | ???????????????????# """"" #???# #???????#### | | ???????????????????# """"" ##### #?????? | | ???????????????????# """ + #?????? """ | | ???????#######?????# ######## ###### """"" | | ######## #?????# ! #??????# # """"" | | ###########+#########??# + """"" | | T # ### ####### # """ | | # + # ??# # | | ######## # ### # " ?# #? | | ?######## ## """ #?# #### # """?# #? | | ?# # ## """ #?# #??# # """ # ####### | | ?# """" # ## """ #?# #??# # """ # %= | | ?# """" + ###+####### #??# # "" / [ % | | ?# """" # #??# # """ # = | | ?# # #??# # "" # [%#####"" | | ?# """" # !==#??# # """?# # | | ?# """" #######+########k##??# # " ?# # """ | | ?# """" #???? #######/##### # ??# + """ | | ?# #?? # """ kk # # ??# # """ | | ????""" #?# "" # "Y" = # ####### # | | ??????" #?# Y" # ! ! %*# u #? | | ??????" ??# "" # """ !! =*g/ ####### #?##### | | ?????? ??# # """ ! !%g# #?????# #?????? | | ??????##??######## """ @ [*# #?????# #?????? | | ?????????????????# a # #?????# #?????? | | ?????????????????########### # #?????# #?????? | | ???????????????????????????### #?????# #?????? | | ?????????????????????????????# #?????# #?????? | | ?????????????????????????????# #?????# #?????? | | ?????????????????????????????# #?????# #?????? | | ?????????????????????????????# #?????# #?????? | | ?????????????????????????????# #?????# +?????? | | ?????????????????????????????# #?????# #?????? | | ????????????????????????????? ????? #?????? | | ????????????????????????????? ????? ??????? | | ?????????????????????????????? ??????? ??????? | | ?????????????????????????????????????????????????? | | ?????????????????????????????????????????????????? | | ?????????????????????????????????????????????????? | | ?????????????????????????????????????????????????? | | ?????????????????????????????????????????????????? | | ?????????????????????????????????????????????????? | | ?????????????????????????????????????????????????? | | ?????????????????????????????????????????????????? | | ?????????????????????????????????????????????????? | | ?????????????????????????????????????????????????? | | ?????????????????????????????????????????????????? | | ?????????????????????????????????????????????????? | +----------------------------------------------------+ Best States ------------- Heat Dissipation 38 Energy Generation 10 Energy Capacity 250 Matter Stores 283 Matter Capacity 300 Sight Range 16 Terrain Scan Density 10 Evasion (%) 55 Recoil Reduction 3 Item Schematics ----------------- None Robot Schematics ------------------ None Fabricated ------------ Nothing Repaired ---------- Nothing Alien Tech Used ----------------- None Achievements -------------- None Challenges ------------ None Game ------ Seed GravityDimensionalCompanion Manual? 0 Play Time 00:12:24 Cumulative 247.6 hours Start 2025.05.12 @ 20:43:08 End 2025.05.12 @ 21:06:29 Sessions 1 Manual Loads 0 Difficulty Rogue Special Mode None Game No. 366 Rogue 366 Adventurer 0 Explorer 0 Win Type - Total 1 Types 1/0/0/0/0/0/0/0/0/0 Lore% 57 Gallery% 60 Achievement% 43 Wizard Run 0 Options --------- Layout 1 ASCII 0 Keyboard 0 Movement Mouse Keybinds 0 Fullscreen 2 Font 24/Smallcaps Map View 50x35 Zoom Use 0% Tactical HUD 1 Map Filters NONE Filters NONE Steam 1 RUN: 9fe2ef37-6a96-4ca7-ada1-bae1fd39f87b